Cogmind - Beta 16.1 @@@ ROGUE MODE // 2026.04.14 @ 17:22:00 Player: skelll Result: Destroyed by as-89259 with Assembled Rifle Performance ------------- Evolutions (0) 0 Regions Visited (4) 800 Robots Destroyed (25) 125 Value Destroyed (431) 431 Prototype IDs (27) 540 Alien Tech Used (0) 0 Bonus (300) 300 TOTAL SCORE: 2196 Bonus ------- Aligned with FarCom 300 Cogmind --------- Core Integrity 0/250 Matter 186/300 Energy 265/265 System Corruption 3% Temperature Cool (0) Movement Treading (240) Ox1 Location -9/Mines Parts ------- > --- POWER (1) -------- Reinforced Ion Engine > --- PROPULSION (2) --- Light Treads > --- UTILITY (2) ------ Large Storage Unit > --- WEAPON (2) ------- (None) > --- INVENTORY (15) --- Flight Unit Flight Unit VTOL Module Huge Storage Unit Humpback Medium Battery (150) Targeting Computer Assault Rifle Light Cannon Rocket Launcher Rocket Launcher Datajack Datajack Field Lobotomy Kit (5) Peak State ------------ > --- POWER ------------ Light Ion Engine > --- PROPULSION ------- Light Treads Light Treads > --- UTILITY ---------- Large Storage Unit Experimental Sensor Array > --- WEAPON ----------- Assault Rifle Assault Rifle > --- INVENTORY -------- Flight Unit Flight Unit Huge Storage Unit Humpback Medium Battery Targeting Computer Splice Drone Bay Light Cannon Grenade Launcher Rocket Launcher Rocket Launcher Datajack Datajack Field Lobotomy Kit [Rating: 18] Favorites ----------- Power Ion Engine Engine Ion Engine Propulsion Hover Unit Treads Light Treads Wheel Compact Wheel Hover Unit Hover Unit Flight Unit Flight Unit Utility Large Storage Unit Device Splice Drone Bay Storage Large Storage Unit Weapon Assault Rifle Energy Gun Small Laser Ballistic Gun Assault Rifle Launcher Rocket Launcher Build | -11 -10 -10 -10 -9 ------- Run | Yrd Mat Min Exi Min Slots Evolved . | . . . . . Power . | . . . . . Propulsion . | . . . . . Utility . | . . . . . Weapon . | . . . . . Parts Attached 25 | 6 10 3 3 3 Power 3 | 1 . 1 . 1 Engine 3 | 1 . 1 . 1 Core . | . . . . . Reactor . | . . . . . Propulsion 10 | 2 4 1 3 . Treads 2 | . . . 2 . Leg . | . . . . . Wheel 2 | 2 . . . . Hover 4 | . 3 1 . . Flight 2 | . 1 . 1 . Utility 6 | 1 3 1 . 1 Device 3 | . 1 1 . 1 Storage 3 | 1 2 . . . Processor . | . . . . . Hackware . | . . . . . Protection . | . . . . . Artifact . | . . . . . Weapon 6 | 2 3 . . 1 Energy Gun 2 | 1 1 . . . Energy Cannon . | . . . . . Ballistic Gun 2 | 1 1 . . . Ballistic Cannon . | . . . . . Launcher 2 | . 1 . . 1 Special Weapon . | . . . . . Impact Weapon . | . . . . . Slashing Weapon . | . . . . . Piercing Weapon . | . . . . . Special Melee Weapon . | . . . . . Unidentified Prototypes 2 | . . 1 . 1 Parts Lost 7 | . 2 . . 5 Power 1 | . . . . 1 Propulsion 2 | . 1 . . 1 Utility 2 | . 1 . . 1 Weapon 2 | . . . . 2 Highest Loss Streak 4 | . 2 . . 4 To Critical Strikes . | . . . . . Average Backups 12 | 1 11 14 14 13 Power . | . 1 . . . Propulsion 3 | 1 3 3 3 2 Utility 3 | . 1 4 5 4 Weapon 3 | . 3 4 4 4 Tool/Special . | . . . . . Unused Backups 13 | 1 1 . 1 10 Power . | . . . . . Propulsion 2 | 1 . . . 1 Utility 4 | . . . 1 3 Weapon 4 | . 1 . . 3 Tool/Special 3 | . . . . 3 Average Slot Usage (%) 96 | . 93 94 100 98 Engine 13 | . 14 14 14 13 Treads 10 | . . . 11 27 Hover 16 | . 25 28 16 . Device 11 | . 8 8 14 14 Storage 14 | . 14 14 14 14 Energy Gun 3 | . 8 . . . Ballistic Gun 20 | . 17 28 28 15 Launcher 4 | . 1 . . 11 Peak Build Rating 18 | 6 9 15 16 18 Average Rating 11 | 4 7 11 15 16 On Entrance 8 | . 6 7 15 16 Avg Prop Armor Cover (%) 3 | . 3 . . . Naked Turns . | . . . . . Heaviest Build 44 | 13 30 37 35 44 Greatest Support 40 | 32 32 12 40 40 Greatest Overweight (x) 7 | . 7 3 2 1 Average Overweight (x) 1 | . 1 2 1 . Largest Inventory Capacity 25 | 8 25 15 15 15 Average Capacity 14 | 7 13 15 15 15 Most Carried 15 | 4 15 15 15 15 Average Carried 13 | 2 11 14 14 14 Final Capacity 15 | 8 15 15 15 15 Final Carried 15 | 4 15 15 15 15 Class Distribution -------------------- 100% | Mutant Dominant Class ---------------- Mutant | -10/Materials Mutant | -10/Mines Mutant | -10/Exiles Mutant | -9/Mines Resources | -11 -10 -10 -10 -9 ----------- Run | Yrd Mat Min Exi Min Matter Collected 725 | 211 171 75 . 268 Remotely . | . . . . . Salvage Created 499 | . 254 75 . 170 Parts 46 | . 26 10 . 10 Haulers Intercepted . | . . . . . Recyclers Shooed 1 | . 1 . . . Parts Field Recycled . | . . . . . Retrieved Matter . | . . . . . Parts Self-Destructed . | . . . . . Prevented . | . . . . . Parts Restored . | . . . . . Kills | -11 -10 -10 -10 -9 ------- Run | Yrd Mat Min Exi Min Combat Hostiles Destroyed 32 | . 10 5 . 17 Guns 11 | . 4 5 . 2 AOE 21 | . 6 . . 15 Classes Destroyed 6 | . 4 . . 2 Worker 2 | . 2 . . . Watcher 1 | . 1 . . . Swarmer 15 | . 6 5 . 4 Grunt 6 | . 4 . . 2 Brawler 1 | . . . . 1 Assembled 10 | . . . . 10 Best Kill Streak 10 | . 5 3 . 10 Combat Bots Only 10 | . 3 3 . 10 Max Kills in Single Turn 5 | . 5 2 . 4 Gunslinging 1 | . . 1 . . Exploded 4 | . 3 . . 4 Melee . | . . . . . Uniques/NPCs Destroyed . | . . . . . Combat | -11 -10 -10 -10 -9 -------- Run | Yrd Mat Min Exi Min Hostile Shots Fired 147 | . 47 29 . 71 Missed 49 | . 19 8 . 22 Hits 98 | . 28 21 . 49 Melee 8 | . . . . 8 Projectile 90 | . 28 21 . 41 AOE 6 | . . . . 6 Critical Strikes 2 | . . . . 2 Damage Taken 1352 | . 266 160 . 926 Core 254 | . 77 . . 177 Absorbed by Shields . | . . . . . Core Remaining (%) 100 | 100 . . . . Volleys Fired 75 | . 28 15 . 32 Largest 2 | . 2 2 . 2 Hottest 85 | . 85 40 . 53 Shots Fired 127 | . 56 30 . 41 Gun 115 | . 54 30 . 31 Cannon . | . . . . . Launcher 12 | . 2 . . 10 Special . | . . . . . Kinetic 78 | . 17 30 . 31 Thermal 20 | . 20 . . . Explosive 12 | . 2 . . 10 Electromagnetic 17 | . 17 . . . Robot Hit Streak 7 | . 7 5 . 7 Robot Miss Streak 4 | . 4 3 . 4 Penetration Max . | . . . . . Secondary Targets 1 | . . 1 . . Max Gunslinging Chain 1 | . . 1 . . Shots Hit Robots 67 | . 31 15 . 21 Core Hits 56 | . 19 5 . 32 Critical Kills . | . . . . . Critical Parts Destroyed . | . . . . . Critical Strikes 1 | . 1 . . . Corrupt 1 | . 1 . . . Melee Attacks . | . . . . . Impact . | . . . . . Slashing . | . . . . . Piercing . | . . . . . Sneak Attacks . | . . . . . Combat Hostiles . | . . . . . Follow-up Attacks . | . . . . . Damage Inflicted 2190 | . 813 196 . 1181 Guns 859 | . 435 196 . 228 Cannons . | . . . . . Explosions 1331 | . 378 . . 953 Melee . | . . . . . Ramming . | . . . . . Kinetic 562 | . 138 196 . 228 Thermal 216 | . 216 . . . Explosive 1217 | . 264 . . 953 Electromagnetic 195 | . 195 . . . Impact . | . . . . . Slashing . | . . . . . Piercing . | . . . . . Highest Corruption 3 | . . . . 3 Average Corruption 2 | . . . . 2 Corruption Purged . | . . . . . Corruption Blocked . | . . . . . Effects 8 | . . . . 8 Message Errors 1 | . . . . 1 Heat Flow Errors 1 | . . . . 1 Data Loss (minor) 4 | . . . . 4 Data Loss (major) 1 | . . . . 1 Weapon Failures 1 | . . . . 1 Overload Shots . | . . . . . Overflow Damage 2 | . . . . 2 Projectiles . | . . . . . Explosions 2 | . . . . 2 Melee . | . . . . . Knockbacks . | . . . . . Impact . | . . . . . Kinetic . | . . . . . Secondary . | . . . . . Self-Inflicted Damage 3 | . . . . 3 Shots 1 | . . . . 1 Rammed . | . . . . . Targets Rammed . | . . . . . Kicked . | . . . . . Crushed . | . . . . . Highest Temperature 333 | . 333 . . 155 Average Temperature 89 | . 141 . . 26 Received Heat Transfer 239 | . 69 . . 170 Siege Activations . | . . . . . Martial Activations . | . . . . . Shielding Activations . | . . . . . Robots Disrupted . | . . . . . Combat Hostiles . | . . . . . Robots Corrupted . | . . . . . Combat Hostiles . | . . . . . Parts Fried . | . . . . . Impact Corruptions . | . . . . . Robots Melted . | . . . . . Combat Hostiles . | . . . . . Parts Melted 1 | . 1 . . . Heat Transferred 325 | . 325 . . . Parts Sabotaged . | . . . . . Parts Stolen . | . . . . . Parts Stripped . | . . . . . Power Chain Reactions 2 | . 2 . . . Alert | -11 -10 -10 -10 -9 ------- Run | Yrd Mat Min Exi Min Maximum Alert Level . | . . . . . Low Security (%) 100 | 100 100 100 . 100 Level 1 . | . . . . . Level 2 . | . . . . . Level 3 . | . . . . . Level 4 . | . . . . . Level 5 . | . . . . . High Security . | . . . . . Max Security . | . . . . . Peak Influence 167 | . 167 97 . 103 Initial 2 | . . 2 . . Average 33 | . 51 16 . 21 Influence Increases 724 | . 354 135 . 235 Destroy 0b10 Robot/C 440 | . 200 100 . 140 Destroy 0b10 Robot/NC 15 | . 15 . . . Destroy Leader 82 | . 42 20 . 20 Successful Hack 17 | . 17 . . . Disable Machine 15 | . . . . 15 Destroy Structure 80 | . 20 . . 60 Lose Combat Pursuer 75 | . 60 15 . . Influence Decreases 724 | . 347 61 81 235 Entered New Map 86 | . . 5 81 . Time Decay 592 | . 337 56 . 199 Lost Part 46 | . 10 . . 36 Squads Dispatched 1 | . 1 . . . Investigation . | . . . . . Extermination . | . . . . . Reinforcement 1 | . 1 . . . Assault . | . . . . . Garrison . | . . . . . Intercept . | . . . . . Searches Triggered . | . . . . . Construction Impeded . | . . . . . Haulers Reinforced . | . . . . . Active Scanning Responses . | . . . . . Cargo Convoy Interrupts . | . . . . . Stealth | -11 -10 -10 -10 -9 --------- Run | Yrd Mat Min Exi Min Distress Signals 1 | . 1 . . . Communications Jammed . | . . . . . Distress Signals . | . . . . . Times Spotted 58 | . 22 7 . 29 Peak Tracking Total 12 | . 6 3 . 12 Tactical Retreats 4 | . 3 1 . . Traps | -11 -10 -10 -10 -9 ------- Run | Yrd Mat Min Exi Min Traps Triggered 1 | . 1 . . . Indirectly . | . . . . . Trap Hack Attempts . | . . . . . Triggered . | . . . . . Disarmed . | . . . . . Reprogrammed . | . . . . . Reused . | . . . . . Traps Extracted . | . . . . . Installed . | . . . . . Triggered . | . . . . . Machines | -11 -10 -10 -10 -9 ---------- Run | Yrd Mat Min Exi Min Machines Disabled 1 | . . . . 1 Max in Single Turn 1 | . . . . 1 Machines Repaired . | . . . . . Machines Dismantled . | . . . . . Machines Sabotaged . | . . . . . Overloaded Fab Kills . | . . . . . Hacking | -11 -10 -10 -10 -9 --------- Run | Yrd Mat Min Exi Min Machines Accessed 8 | . 6 1 1 . Terminals 6 | . 6 . . . Fabricators . | . . . . . Repair Stations . | . . . . . Recycling Units . | . . . . . Scanalyzers . | . . . . . Garrison Access . | . . . . . Total Hacks 17 | . 15 1 1 . Successful 7 | . 5 1 1 . Failed 10 | . 10 . . . Catastrophic 1 | . 1 . . . Database Lockouts . | . . . . . Manual 1 | . . . 1 . Terminals 15 | . 15 . . . Fabricators . | . . . . . Repair Stations . | . . . . . Recycling Units . | . . . . . Scanalyzers . | . . . . . Garrison Access . | . . . . . Terminal Hacks 7 | . 5 1 1 . Prototype ID Bank 1 | . 1 . . . Open Door 1 | . . 1 . . Locate Traps 1 | . 1 . . . Hauler Manifests 1 | . 1 . . . Registered Components 1 | . 1 . . . Zone Layout 1 | . 1 . . . Proto ID Catalog 1 | . . . 1 . Fabricator Hacks . | . . . . . Repair Station Hacks . | . . . . . Recycling Unit Hacks . | . . . . . Scanalyzer . | . . . . . Garrison Access Hacks . | . . . . . Unauthorized Hacks . | . . . . . Terminals . | . . . . . Fabricators . | . . . . . Repair Stations . | . . . . . Recycling Units . | . . . . . Scanalyzers . | . . . . . Garrison Access . | . . . . . Data Cores Recovered . | . . . . . Used . | . . . . . Hacking Detections 4 | . 4 . . . Full Trace Events 1 | . 1 . . . Feedback Events . | . . . . . Feedback Blocked . | . . . . . Robot Schematics Acquired . | . . . . . Robots Built . | . . . . . Authchips . | . . . . . Time . | . . . . . Total Robot Build Rating . | . . . . . Part Schematics Acquired . | . . . . . Parts Built . | . . . . . Authchips . | . . . . . Time . | . . . . . Total Part Build Rating . | . . . . . Part Studies Acquired . | . . . . . Parts Repaired . | . . . . . Time . | . . . . . Parts Recycled . | . . . . . Recycled Matter . | . . . . . Retrieved Matter . | . . . . . Retrieved Components . | . . . . . Parts Scanalyzed . | . . . . . Part Schematics Acquired . | . . . . . Parts Damaged . | . . . . . Bothacking | -11 -10 -10 -10 -9 ------------ Run | Yrd Mat Min Exi Min Used RIF Installer . | . . . . . Robots Hacked . | . . . . . Non-combat . | . . . . . Combat . | . . . . . Robot Hacks Applied . | . . . . . Relay Couplers Released . | . . . . . Fabnet Peak Effective % . | . . . . . Robots Rewired . | . . . . . Allies Hacked . | . . . . . Hacks Repelled . | . . . . . Allies | -11 -10 -10 -10 -9 -------- Run | Yrd Mat Min Exi Min Total Allies . | . . . . . Largest Group . | . . . . . Highest-Rated Group . | . . . . . Highest-Rated Ally . | . . . . . Total Orders . | . . . . . Ally Attacks . | . . . . . Total Damage . | . . . . . Kills . | . . . . . Allies Corrupted . | . . . . . Allies Melted . | . . . . . Intel | -11 -10 -10 -10 -9 ------- Run | Yrd Mat Min Exi Min Active Infowar (turns) 2 | . . . . 2 Sensors 2 | . . . . 2 Robot Analysis Total . | . . . . . Derelict Logs Recovered 2 | . . 1 . 1 Drone Launches . | . . . . . Drone Recoveries . | . . . . . Exploration | -11 -10 -10 -10 -9 ------------- Run | Yrd Mat Min Exi Min Turns Passed 3004 | 56 1145 443 492 868 Spaces Moved 1474 | 43 615 190 286 340 Core 2 | 2 . . . . Treads 470 | . . . 130 340 Legs . | . . . . . Wheels 93 | 41 52 . . . Hover 907 | . 561 190 156 . Flight 2 | . 2 . . . Fastest Speed 50 | 50 100 176 160 160 Average Speed 179 | 97 161 194 168 224 Slowest Speed 600 | 100 600 236 176 240 Overloaded Moves . | . . . . . Propulsion Burnouts . | . . . . . Robots Hopped . | . . . . . Potential Cave-ins . | . . . . . Cave-ins Triggered . | . . . . . Exploration Rate (%) 50 | 5 74 27 65 81 Regions Visited 4 Branch Regions 3 Pre-discovered Areas 1 | . . . . 1 Known Exits Taken . | . . . . . Unknown Exits Taken 4 | 1 1 1 1 . Scrap Searched 1 | . . . . 1 Spaces Dug . | . . . . . Terrain Destroyed 103 | . 25 . . 78 Melee . | . . . . . Projectile . | . . . . . AOE 103 | . 25 . . 78 Terrain Rammed . | . . . . . Walls Destroyed . | . . . . . Machines Disabled . | . . . . . Actions | -11 -10 -10 -10 -9 --------- Run | Yrd Mat Min Exi Min Total 1699 | 54 711 235 295 404 Wait 84 | . 37 23 . 24 Move 1470 | 42 614 189 285 340 Hop . | . . . . . Pick Up 26 | 5 14 3 2 2 Fast Attach 10 | 6 3 . . 1 Attach 3 | . 2 1 . . Detach 1 | . 1 . . . Swap 18 | . 8 2 5 3 Drop 12 | 1 4 2 3 2 Fire 75 | . 28 15 . 32 Melee . | . . . . . Ram . | . . . . . Kick . | . . . . . Crush . | . . . . . Escape Stasis . | . . . . . Rewire . | . . . . . Trap . | . . . . . Miscellaneous . | . . . . . Route ------- -11/Scrapyard -10/Materials (discovered 4 exits: [*Mat x2] / *Min x2) -10/Mines (discovered 2 exits: *Exi / [*Sub]) -10/Exiles -9/Mines (discovered 1 exit: [*Mat]) History --------- Turn | Location | Event 17 | -11/Scrapyard | Discovered new exit (range 15) 57 | -11/Scrapyard | Entered Materials 316 | -10/Materials | Build established: Mutant 533 | -10/Materials | Discovered new exit (range 16) 674 | -10/Materials | Discovered new exit (range 12) 811 | -10/Materials | Discovered new exit (range 16) 987 | -10/Materials | Discovered new exit (range 9) 1202 | -10/Materials | Entered Mines 1266 | -10/Mines | Deemed a non-threat by the Exiles lab entrance 1268 | -10/Mines | Discovered new exit (range 5) 1347 | -10/Mines | Learned Materials emergency access door positions 1355 | -10/Mines | Found the Drone Emporium 1373 | -10/Mines | Found Prototype Device 1374 | -10/Mines | Identified Splice Drone Bay 1437 | -10/Mines | Discovered new exit (range 10) 1442 | -10/Mines | Found a damaged Exp. Sensor Array with a note attached 1446 | -10/Mines | Found Prototype Device 1645 | -10/Mines | Entered Exiles 1695 | -10/Exiles | Met 8R-AWN 1726 | -10/Exiles | Met EX-HEX 1841 | -10/Exiles | Met EX-BIN 1862 | -10/Exiles | Aligned with FarCom system 1864 | -10/Exiles | Given EX-Vault access code 1911 | -10/Exiles | Opened EX-Vault 1933 | -10/Exiles | Found Field Lobotomy Kit 1963 | -10/Exiles | Warned to stay clear of 0b10 Research branches 2011 | -10/Exiles | Met EX-DEC 2125 | -10/Exiles | Discovered new exit (range 10) 2137 | -10/Exiles | Left Exiles lab with Field Lobotomy Kit 2137 | -10/Exiles | Entered Mines 2138 | -9/Mines | Learned location of Storage (-7) 2174 | -9/Mines | Identified Exp. Sensor Array 2191 | -9/Mines | Received a Rocket Launcher from a helpful Derelict 2266 | -9/Mines | Discovered new exit (range 5) 2898 | -9/Mines | Learned Materials emergency access door positions 2950 | -9/Mines | Assembled infested the area 2998 | -9/Mines | Core integrity fell below 50% 3005 | -9/Mines | Destroyed 10 combat bots 3005 | -9/Mines | Core integrity fell below 20% 3005 | -9/Mines | Destroyed by as-89259 with Assembled Rifle Last Messages --------------- 02992_ C-45 Heavy ARC bursts open, deploying its payload. 02992_ D-53 Grenadier unfolds itself. 02993_ as-59235 destroyed. 02993_ Rocket Launcher destroyed. 02994_ The unstable cave ceiling collapses. 02997_ Assault Rifle destroyed. 02998_ Lgt. Treads destroyed. 02998_ System corrupted by crushing effect (+1). 03000_ as-36235 destroyed. 03000_ as-66392 destroyed. 03000_ as-89375 destroyed. 03000_ as-18715 destroyed. 03002_ System corrupted: Substantial component data lost. 03002_ Splice Drone Bay destroyed. 03002_ as-59754 destroyed. 03004_ D-53 Grenadier suffers critical hit (Destroy). 03005_ The unstable cave ceiling collapses. Map ----- +----------------------------------------------------+ | ??????????????????????????????????????? | | ??????????????????????????????????????? | | ??????????????????????????????????????? | | ??????????????????????????????????????? | | ??????????????????????????????????????? | | ??????????????????????????????????????? | | ??????????????????????????##??????????? | | ????????????????????????## ##????????? | | ???????????????????? ????????? | | ???????????????????? # % ##??????? | | ????????????????????? # # # ??????? | | ????????????????????## # # #??????? | | ????????????????????# a # #??????? | | ????????????????????? # ##?????? | | ????????????????????## # #?????? | | ????????????????????? a ??????? | | ?????????????????????? t aa ###?????? | | ??????????????????????? #?????? | | ??????????????????????### ##????? | | ?????????????????????## #????? | | ????????????????????## #?????? | | ???????????????????## ##??????? | | ???????????????????? ###?????? | | ????????????????????## ##????? | | ????????????????????# #????? | | ????????????????????# @ #????? | | ????????????????????# #???? | | ????????????????????# #???? | | ????????????????????## # d ###???? | | ?????????????????????#### # #?????? | | ??????####??????????????## d #?????? | | ?????## #???????????????# ##?????? | | ????## #???????????????# #??????? | | ????# ###????????????? #??????? | | ????# ##????????????# ##??????? | | ?????# ##############%#???????? | | ?????### ## #???????? | | ???????## ## #############???????? | | ????????## ### #???????????????????? | | ?????????# ##?# #???????????????????? | | ?????????## #??# #???????????????????? | | ??????????## #### #???????????????????? | | ???????????# #???????????????????? | | ???????????# ######???????????????????? | | ???????????# #????????????????????????? | | ???????????# #????????????????????????? | | ???????????# #????????????????????????? | | ???????????# #????? #?????????????????? | | ####???????# #??? ?????????????????? | | ##????### ## """ ?????????????????? | +----------------------------------------------------+ Best States ------------- Heat Dissipation 35 Energy Generation 12 Energy Capacity 265 Matter Stores 300 Matter Capacity 300 Sight Range 16 Terrain Scan Density 10 Evasion (%) 45 Recoil Reduction 2 Item Schematics ----------------- None Robot Schematics ------------------ None Fabricated ------------ Nothing Repaired ---------- Nothing Studied --------- None Alien Tech Used ----------------- None Achievements -------------- None Challenges ------------ None Game ------ Seed DisassembledPulseStrikerail Manual? 0 Play Time 00:33:50 Cumulative 17.8 hours Start 2026.04.14 @ 16:44:57 End 2026.04.14 @ 17:22:00 Sessions 1 Manual Loads 0 Difficulty Rogue Special Mode None Game No. 31 Rogue 31 Adventurer 0 Explorer 0 Win Type - Total 0 Types 0/0/0/0/0/0/0/0/0/0 Lore% 15 Gallery% 14 Achievement% 11 Wizard Run 0 Options --------- Layout 1 ASCII 0 Keyboard 1 Movement Arrows Keybinds 0 Fullscreen 2 Font 24/Smallcaps Map View 50x35 Zoom Use 0% Tactical HUD 1 Map Filters NONE Filters NONE Steam 1 RUN: f1b04edb-1c04-4d11-82b2-de1cbf1934f7